bitfinex/quotes_SOLUSD_20250609
["timestamp","ask_amount","ask_price","bid_price","bid_amount"]
[1749457262801,12.65344446,150.83,150.78,42.91217933]
[1749457263002,12.65344446,150.83,150.79,12.65344446]
[1749457263234,12.65344446,150.84,150.79,12.65344446]
[1749457265237,12.65344446,150.84,150.8,6.63129973]
[1749457267739,12.65344446,150.84,150.8,12.65344446]
[1749457268731,12.65344446,150.84,150.8,19.28457371]
[1749457268933,12.65344446,150.84,150.8,6.63112925]
[1749457269136,12.65344446,150.84,150.8,19.28457371]
[1749457269938,12.65344446,150.84,150.8,12.65344446]
[1749457270521,12.65344446,150.82,150.78,16.91203268]
[1749457271034,12.65344446,150.82,150.78,29.56547714]
[1749457274537,12.65344446,150.83,150.79,12.65344446]
[1749457274727,12.65344446,150.85,150.81,12.65344446]
[1749457274955,12.65344446,150.84,150.81,12.65344446]
[1749457275142,12.65344446,150.84,150.8,12.65344446]
[1749457276152,19.28305951,150.84,150.8,12.65344446]
[1749457277374,12.65344446,150.84,150.8,12.65344446]
[1749457277738,32.62839031,150.87,150.81,12.65344446]
[1749457277936,12.65344446,150.85,150.81,12.65344446]
[1749457278859,12.65344446,150.86,150.82,12.65344446]
[1749457281055,14.21324446,150.88,150.83,12.65344446]
[1749457281235,20.84110312,150.88,150.84,12.65344446]
[1749457289263,12.65344446,150.87,150.83,12.65344446]
[1749457290468,6.62866233,150.86,150.83,12.65344446]
[1749457290763,6.62866233,150.86,150.82,12.65344446]
[1749457290969,6.62866233,150.86,150.83,12.65344446]
[1749457292453,19.28184547,150.87,150.83,12.65344446]
[1749457292675,6.62840101,150.87,150.84,12.65344446]
[1749457292863,6.62840101,150.87,150.83,12.65344446]
[1749457294771,19.28184547,150.87,150.83,12.65344446]
[1749457300776,19.28168246,150.87,150.83,19.28333727]
[1749457300970,19.28168246,150.87,150.83,12.65344446]
[1749457301165,156.38,150.9,150.86,12.65344446]
[1749457301684,169.03344446,150.9,150.86,12.65344446]
[1749457302260,175.66040832,150.9,150.86,12.65344446]
[1749457304675,163.00696386,150.9,150.86,12.65344446]
[1749457304973,175.66040832,150.9,150.86,12.65344446]
[1749457306261,29.56040832,150.9,150.86,12.65344446]
[1749457309382,29.56040832,150.9,150.87,12.65344446]
[1749457309754,1.6639,150.92,150.88,12.65344446]
[1749457309959,6.3823,150.93,150.9,12.65344446]
[1749457309960,13.0080169,150.93,150.9,12.65344446]
[1749457310158,6.6257169,150.93,150.9,12.65344446]
[1749457311291,6.6257169,150.93,150.9,8.09403703]
[1749457313380,6.6257169,150.93,150.9,12.64687289]
[1749457314001,57.14923817,150.96,150.92,12.64687289]
[1749457314203,57.14923817,150.96,150.93,12.64687289]
[1749457314409,12.64687289,150.94,150.88,26.0]
[1749457314581,12.64687289,150.92,150.88,12.64687289]
[1749457314773,12.64687289,150.92,150.87,6.62822297]
[1749457314774,12.64687289,150.91,150.87,12.64687289]
[1749457315590,12.64687289,150.9,150.84,6.62940977]
[1749457315781,12.64687289,150.9,150.86,12.64687289]
[1749457315976,19.27403222,150.9,150.86,12.64687289]
[1749457320507,12.64687289,150.89,150.85,12.64687289]
[1749457320695,19.27403222,150.9,150.86,12.64687289]
[1749457324388,19.27403222,150.9,150.85,12.64687289]
[1749457325095,12.64687289,150.89,150.85,12.64687289]
[1749457325403,19.27444091,150.89,150.85,12.64687289]
[1749457328110,19.27386198,150.9,150.85,19.27582454]
[1749457329684,12.64687289,150.9,150.85,19.27582454]
[1749457329885,19.2738191,150.9,150.85,19.27582454]
[1749457330409,12.64687289,150.89,150.85,19.27582454]
[1749457331712,6.6264661,150.91,150.86,12.64687289]
[1749457331880,12.64687289,150.9,150.86,12.64687289]
[1749457333196,8.09890263,150.9,150.86,8.09890263]
[1749457334707,14.72599592,150.9,150.86,8.09890263]
[1749457334908,8.09890263,150.89,150.85,14.72800119]
[1749457335112,8.09890263,150.89,150.85,8.09890263]
[1749457336818,8.09890263,150.89,150.85,14.72793492]
[1749457337196,14.72634548,150.89,150.85,8.09890263]
[1749457338421,8.09890263,150.89,150.85,14.72798418]
[1749457338795,14.72624886,150.89,150.85,14.72798418]
[1749457339097,14.72624886,150.89,150.85,8.09890263]
[1749457341419,8.09890263,150.87,150.83,34.09890263]
[1749457341621,8.09890263,150.87,150.83,8.09890263]
[1749457342116,6.62734623,150.89,150.81,51.00963715]
[1749457342117,8.09890263,150.86,150.81,51.00963715]
[1749457342300,8.09890263,150.85,150.81,44.37890263]
[1749457342895,14.72809555,150.85,150.81,44.37890263]
[1749457343216,14.72809555,150.85,150.81,36.28]
[1749457343414,8.09890263,150.85,150.81,42.91084458]
[1749457343715,8.09890263,150.85,150.81,51.00974721]
[1749457343915,6.62884493,150.86,150.81,51.00974721]
[1749457343916,8.09890263,150.86,150.81,51.00974721]
[1749457344219,8.09890263,150.86,150.82,8.09890263]
[1749457344518,8.09890263,150.86,150.81,42.91084458]
[1749457344697,8.09890263,150.86,150.81,51.00974721]
[1749457345021,14.72773719,150.86,150.81,51.00974721]
[1749457345426,14.72773719,150.86,150.82,8.09890263]
[1749457345800,8.09890263,150.85,150.81,40.72974721]
[1749457347121,14.72815268,150.85,150.81,8.09890263]
[1749457347328,8.09890263,150.84,150.8,8.09890263]
[1749457348326,14.72869764,150.84,150.8,8.09890263]
[1749457348625,8.09890263,150.83,150.79,8.09890263]
[1749457351206,8.09890263,150.83,150.79,14.7306203]
[1749457351909,14.72889251,150.83,150.79,8.09890263]
[1749457352814,8.09890263,150.83,150.79,14.73054639]
[1749457353236,8.09890263,150.83,150.79,8.09890263]
[1749457353410,14.72918768,150.83,150.79,8.09890263]
[1749457362529,14.72918768,150.83,150.78,6.63186542]
[1749457362733,14.72918768,150.83,150.79,8.09890263]
[1749457366811,14.72918768,150.83,150.78,8.09890263]
[1749457366812,8.09890263,150.82,150.78,8.09890263]
[1749457367229,8.09890263,150.81,150.77,18.37890263]
[1749457367411,6.63028505,150.83,150.78,8.09890263]
[1749457367412,8.09890263,150.82,150.78,8.09890263]
[1749457369333,14.72962061,150.82,150.78,8.09890263]
[1749457372938,8.09890263,150.81,150.77,8.09890263]
[1749457375042,14.73006602,150.81,150.77,8.09890263]
[1749457376723,8.09890263,150.8,150.75,8.09890263]
[1749457378047,14.73046149,150.8,150.75,8.09890263]
[1749457378244,14.73046149,150.8,150.75,14.73229304]
[1749457378449,14.73046149,150.8,150.76,8.09890263]
[1749457382147,8.09890263,150.8,150.76,14.73194697]
[1749457383451,40.18,150.83,150.79,8.09890263]
[1749457383741,14.72902443,150.83,150.79,8.09890263]
[1749457384724,8.09890263,150.82,150.78,14.73083635]
[1749457384962,8.09890263,150.82,150.78,8.09890263]
[1749457386045,8.09890263,150.82,150.78,14.73106543]
[1749457392363,8.09890263,150.82,150.79,8.09890263]
[1749457396878,8.09890263,150.82,150.79,14.73058085]
[1749457398478,8.09890263,150.83,150.79,14.73058085]
[1749457399490,14.72898269,150.83,150.79,8.09890263]
[1749457401073,8.09890263,150.85,150.8,8.09890263]
[1749457401456,8.09890263,150.85,150.81,8.09890263]
[1749457403264,14.72804897,150.85,150.81,8.09890263]
[1749457406392,8.09890263,150.85,150.81,14.72974346]
[1749457407096,23.09828009,150.86,150.81,14.72974346]
[1749457407097,31.19718272,150.86,150.82,8.09890263]
[1749457411392,24.56850263,150.86,150.82,14.72927188]
[1749457412592,14.28850263,150.86,150.82,14.72927188]
[1749457414810,14.28850263,150.86,150.82,14.72927188]
[1749457415297,8.09890263,150.87,150.83,8.09890263]
[1749457416606,8.09890263,150.87,150.82,8.09890263]
[1749457417385,8.09890263,150.87,150.81,6.63067459]
[1749457417386,14.72800438,150.85,150.81,8.09890263]
[1749457418512,6.62910175,150.85,150.82,8.09890263]
[1749457424591,6.62910175,150.85,150.8,8.09890263]
[1749457424592,8.09890263,150.84,150.8,8.09890263]
[1749457424812,8.09890263,150.83,150.78,10.26]
[1749457425112,23.20185614,150.85,150.78,8.09890263]
[1749457425113,8.09890263,150.82,150.78,8.09890263]
[1749457425311,8.09890263,150.83,150.79,8.09890263]
[1749457427036,6.63042036,150.82,150.79,8.09890263]
[1749457427386,14.72932299,150.82,150.78,8.09890263]
[1749457430042,14.7300669,150.81,150.77,8.09890263]
[1749457430217,8.09890263,150.8,150.76,8.09890263]
[1749457431032,8.09890263,150.79,150.75,34.09890263]
[1749457432033,8.09890263,150.8,150.76,8.09890263]
[1749457435113,8.09890263,150.8,150.76,14.73185614]
[1749457436440,14.730212,150.8,150.76,14.73185614]
[1749457436739,14.730212,150.8,150.76,8.09890263]
[1749457445649,8.09890263,150.8,150.76,14.73195011]
[1749457445853,14.72903501,150.83,150.78,8.09890263]
[1749457446740,8.09890263,150.83,150.79,8.09890263]
[1749457446948,14.72907189,150.83,150.79,8.09890263]
[1749457447131,8.09890263,150.81,150.76,48.25890263]
[1749457447454,8.09890263,150.81,150.76,14.73195487]
[1749457448150,14.73020236,150.8,150.76,8.09890263]
[1749457449556,6.63129973,150.8,150.77,8.09890263]
[1749457450230,33.37897185,150.82,150.78,8.09890263]
[1749457450632,8.09890263,150.81,150.77,8.09890263]
[1749457450841,8.09890263,150.8,150.76,8.09890263]
[1749457451530,14.73033033,150.8,150.76,8.09890263]
[1749457456754,14.73033033,150.8,150.75,26.0]
[1749457456755,8.09890263,150.79,150.75,26.0]
[1749457456962,8.09890263,150.76,150.72,18.35890263]
[1749457458059,8.09890263,150.76,150.7,6.63543223]
[1749457458060,8.09890263,150.75,150.7,6.63543223]
[1749457458358,8.09890263,150.74,150.7,8.09890263]
[1749457459136,8.09890263,150.74,150.7,14.73450277]
[1749457460278,8.09890263,150.74,150.69,6.63614042]
[1749457460435,8.09890263,150.74,150.7,8.09890263]
[1749457460745,8.09890263,150.74,150.69,6.63614042]
[1749457460746,8.09890263,150.72,150.68,18.35890263]
[1749457461060,8.09890263,150.72,150.65,6.63790242]
[1749457461234,1.5252,150.73,150.64,42.65561052]
[1749457461235,8.09890263,150.7,150.64,16.89819269]
[1749457461432,8.09890263,150.7,150.66,8.09890263]
[1749457461637,8.09890263,150.69,150.65,8.09890263]
[1749457462234,8.09890263,150.7,150.65,8.09890263]
[1749457462452,8.09890263,150.7,150.65,14.73668584]
[1749457463045,8.09890263,150.69,150.65,8.09890263]
[1749457463249,12.69050546,150.69,150.65,12.69050546]
[1749457464654,12.69050546,150.69,150.65,19.32828158]
[1749457470468,12.69050546,150.69,150.63,6.63878377]
[1749457470685,25.28491548,150.71,150.64,12.69050546]
[1749457470686,12.69050546,150.68,150.64,12.69050546]
[1749457471052,12.69050546,150.68,150.63,19.32928923]
[1749457471253,12.69050546,150.67,150.63,6.63878377]
[1749457471573,18.64964886,150.68,150.63,6.63878377]
[1749457471574,12.69050546,150.66,150.63,6.63878377]
[1749457471955,12.69050546,150.67,150.63,19.32928923]
[1749457472170,12.69050546,150.67,150.63,6.63878377]
[1749457472371,12.69050546,150.66,150.62,12.69050546]
[1749457472669,12.69050546,150.66,150.61,6.63966536]
[1749457472670,12.69050546,150.64,150.61,6.63966536]
[1749457473649,18.64964886,150.66,150.62,12.69050546]
[1749457473650,31.34015432,150.66,150.62,12.69050546]
[1749457474364,12.69050546,150.66,150.62,12.69050546]
[1749457474674,12.69050546,150.66,150.61,6.63966536]
[1749457474854,12.69050546,150.66,150.61,19.33017082]
[1749457476971,12.69050546,150.65,150.61,6.63966536]
[1749457477279,12.69050546,150.65,150.61,19.33017082]
[1749457477460,18.64964886,150.66,150.61,19.33017082]
[1749457477661,12.69050546,150.65,150.61,19.33017082]
[1749457477858,18.64964886,150.66,150.62,12.69050546]
[1749457478075,31.34015432,150.66,150.62,19.32970435]
[1749457478263,31.34015432,150.66,150.62,6.63919889]
[1749457478461,12.69050546,150.65,150.61,19.33003196]
[1749457482354,31.34015432,150.66,150.62,12.69050546]
[1749457482893,14.30420546,150.67,150.63,12.69050546]
[1749457483072,12.69050546,150.67,150.63,12.69050546]
[1749457483401,31.34015432,150.67,150.63,12.69050546]
[1749457483683,12.69050546,150.66,150.62,12.69050546]
[1749457484676,12.69050546,150.66,150.62,19.32931413]
[1749457485880,31.34015432,150.67,150.63,12.69050546]
[1749457486065,12.69050546,150.67,150.63,12.69050546]
[1749457486267,52.87050546,150.68,150.64,12.69050546]
[1749457486582,52.87050546,150.68,150.64,19.32880195]
[1749457487079,12.69050546,150.68,150.64,19.32880195]
[1749457487285,18.64964886,150.68,150.64,19.32880195]
[1749457487488,31.34015432,150.68,150.64,12.69050546]
[1749457489185,175.68680964,150.69,150.65,12.69050546]
[1749457490185,169.05050546,150.69,150.65,12.69050546]
[1749457490384,10.26,150.69,150.66,12.69050546]
[1749457491487,10.26,150.69,150.64,6.63816008]
[1749457491488,22.95050546,150.69,150.64,6.63816008]
[1749457491781,22.95050546,150.69,150.65,12.69050546]
[1749457493376,10.26,150.69,150.66,12.69050546]
[1749457495196,16.8961508,150.69,150.66,12.69050546]
[1749457495375,16.8961508,150.69,150.66,8.12086387]
[1749457496206,10.26,150.69,150.66,8.12086387]
[1749457496369,10.0011116,150.69,150.66,8.12086387]
[1749457496892,1.6234,150.71,150.67,8.12086387]
[1749457497098,73.60571959,150.72,150.68,8.12086387]
[1749457498688,33.40571959,150.72,150.68,8.12086387]
[1749457498895,4.95328196,150.72,150.69,8.12086387]
[1749457499194,25.03525786,150.73,150.71,8.12086387]
[1749457499195,4.95328196,150.73,150.71,8.12086387]
[1749457499374,147.6492,150.75,150.68,26.0]
[1749457499375,4.95328196,150.74,150.72,8.12086387]
[1749457499568,147.6492,150.75,150.72,8.12086387]
[1749457499768,155.77006387,150.75,150.71,8.12086387]
[1749457499984,26.77051273,150.73,150.69,8.12086387]
[1749457500509,26.77051273,150.73,150.68,26.0]
[1749457500678,6.63481953,150.72,150.69,8.12086387]
[1749457501381,6.63481953,150.72,150.69,12.68361543]
[1749457502397,12.68361543,150.71,150.67,12.68361543]
[1749457502637,19.31924678,150.71,150.67,12.68361543]
[1749457504398,19.31924678,150.71,150.64,6.6381723]
[1749457504707,12.68361543,150.7,150.66,12.68361543]
[1749457505784,19.31969064,150.7,150.66,12.68361543]
[1749457509702,19.31969064,150.7,150.65,12.68361543]
[1749457509902,19.31969064,150.7,150.63,6.63859329]
[1749457509903,12.68361543,150.68,150.64,12.68361543]
[1749457510493,12.68361543,150.69,150.65,12.68361543]
[1749457510912,19.31990072,150.69,150.65,12.68361543]
[1749457512713,12.68361543,150.68,150.64,12.68361543]
[1749457514394,19.31990072,150.69,150.65,12.68361543]
[1749457514791,19.31990072,150.69,150.6,0.28432314]
[1749457514792,12.68361543,150.66,150.59,0.28432314]
[1749457515113,12.68361543,150.64,150.59,12.68361543]
[1749457515408,12.68361543,150.63,150.59,12.68361543]
[1749457515788,12.68361543,150.61,150.53,50.0951]
[1749457516019,12.68361543,150.6,150.53,50.0951]
[1749457516225,12.68361543,150.6,150.56,12.68361543]
[1749457516594,12.68361543,150.59,150.55,12.68361543]
[1749457517109,6.64027223,150.6,150.56,12.68361543]
[1749457517110,19.32388766,150.6,150.56,12.68361543]
[1749457517691,12.68361543,150.59,150.55,12.68361543]
[1749457518414,12.68361543,150.59,150.54,12.68361543]
[1749457518415,12.68361543,150.58,150.54,12.68361543]
[1749457518634,6.64021047,150.6,150.55,12.68361543]
[1749457518795,12.68361543,150.59,150.55,12.68361543]
[1749457520200,12.68361543,150.59,150.55,19.32587015]
[1749457520816,6.64055183,150.59,150.55,12.68361543]
[1749457521007,19.32416726,150.59,150.55,12.68361543]
[1749457524414,12.68361543,150.59,150.55,19.32577345]
[1749457524630,12.68361543,150.6,150.56,12.68361543]
[1749457525147,12.68361543,150.61,150.57,12.68361543]
[1749457525301,12.68361543,150.61,150.55,6.64215802]
[1749457525302,10.28,150.63,150.6,12.68361543]
[1749457525501,22.96361543,150.63,150.59,12.68361543]
[1749457527607,29.60241516,150.63,150.59,12.68361543]
[1749457527833,146.1,150.64,150.6,12.68361543]
[1749457528006,146.1,150.64,150.61,12.68361543]
[1749457528321,12.68361543,150.65,150.61,12.68361543]
[1749457528520,57.1966,150.66,150.61,12.68361543]
[1749457528701,19.32166584,150.65,150.61,12.68361543]
[1749457529301,16.91751976,150.66,150.64,12.68361543]
[1749457529498,16.91751976,150.66,150.61,6.63963614]
[1749457529499,16.91751976,150.66,150.63,12.68361543]
[1749457530818,10.28,150.66,150.63,12.68361543]
[1749457532823,53.00361543,150.68,150.63,12.68361543]
[1749457532824,6.63675103,150.68,150.65,12.68361543]
[1749457533326,19.32036646,150.68,150.64,12.68361543]
[1749457535228,6.63675103,150.68,150.65,12.68361543]
[1749457535823,48.30956309,150.69,150.65,12.68361543]
[1749457536002,48.30956309,150.69,150.6,23.24037184]
[1749457536003,35.62594766,150.69,150.66,12.68361543]
[1749457536203,48.30956309,150.69,150.65,12.68361543]
[1749457537413,35.62594766,150.69,150.65,12.68361543]
[1749457538819,48.30956309,150.69,150.65,12.68361543]
[1749457539019,35.62594766,150.69,150.66,12.68361543]
[1749457539511,48.30956309,150.69,150.65,12.68361543]
[1749457542016,35.62594766,150.69,150.66,12.68361543]
[1749457542841,16.9762988,150.69,150.66,12.68361543]
[1749457543043,29.65991423,150.69,150.65,12.68361543]
[1749457543227,29.65991423,150.69,150.6,56.9202656]
[1749457543228,12.68361543,150.68,150.64,12.68361543]
[1749457544743,29.65991423,150.69,150.65,12.68361543]
[1749457548450,19.31991423,150.69,150.65,12.68361543]
[1749457549835,19.31991423,150.69,150.62,6.6389823]
[1749457549836,12.68361543,150.68,150.64,12.68361543]
[1749457550472,6.6370213,150.67,150.64,12.68361543]
[1749457552052,19.32063673,150.67,150.63,12.68361543]
[1749457554248,6.6370213,150.67,150.64,12.68361543]
[1749457554442,6.63670473,150.68,150.64,12.68361543]
[1749457554647,19.31975585,150.69,150.65,12.68361543]
[1749457556342,12.68361543,150.68,150.64,12.68361543]
[1749457558046,6.6370213,150.67,150.64,12.68361543]
[1749457561061,6.6370213,150.67,150.63,12.68361543]
[1749457562962,19.32033642,150.68,150.64,12.68361543]
[1749457563338,6.63672099,150.68,150.64,12.68361543]
[1749457566747,6.63672099,150.68,150.65,12.68361543]
[1749457568353,6.63672099,150.68,150.64,12.68361543]
[1749457569446,19.32033642,150.68,150.64,12.68361543]
[1749457569656,12.68361543,150.67,150.63,12.68361543]
[1749457569847,12.68361543,150.67,150.62,12.68361543]
[1749457570942,19.3208941,150.67,150.63,12.68361543]
[1749457572856,6.63727867,150.67,150.64,12.68361543]
[1749457573469,6.63614042,150.69,150.65,12.68361543]
[1749457573647,4.96063491,150.69,150.68,12.68361543]
[1749457573959,12.68361543,150.71,150.67,12.68361543]
[1749457574161,4.96294568,150.7,150.67,12.68361543]
[1749457574365,12.68361543,150.71,150.67,12.68361543]
[1749457574573,4.96233496,150.7,150.67,12.68361543]
[1749457574776,12.68361543,150.71,150.67,12.68361543]
[1749457574953,4.96228656,150.7,150.67,12.68361543]
[1749457575155,6.63613509,150.7,150.67,12.68361543]
[1749457576842,19.31975052,150.7,150.66,12.68361543]
[1749457578453,6.63613509,150.7,150.66,12.68361543]
[1749457579260,6.63613509,150.7,150.67,12.68361543]
[1749457583880,6.63525977,150.71,150.68,12.68361543]
[1749457584071,10.32,150.73,150.7,12.68361543]
[1749457585275,15.28133993,150.73,150.7,12.68361543]
[1749457585860,4.96133993,150.74,150.72,12.68361543]
[1749457586075,6.63353521,150.75,150.72,12.68361543]
[1749457586279,11.59230598,150.75,150.72,12.68361543]
[1749457586979,4.95877077,150.75,150.72,12.68361543]
[1749457587367,6.63352729,150.75,150.72,12.68361543]
[1749457587571,4.95877077,150.76,150.73,12.68361543]
[1749457588880,4.95877077,150.76,150.74,12.68361543]
[1749457589479,11.59189914,150.76,150.74,12.68361543]
[1749457589679,11.59189914,150.76,150.73,12.68361543]
[1749457591470,6.63312837,150.76,150.73,12.68361543]
[1749457592783,6.63312837,150.76,150.72,12.68361543]
[1749457593663,6.63312837,150.76,150.69,1.5989]
[1749457593664,12.68361543,150.74,150.69,1.5989]
[1749457593869,18.64964886,150.75,150.69,12.68361543]
[1749457593870,12.68361543,150.73,150.69,12.68361543]
[1749457594790,19.31815431,150.73,150.69,12.68361543]
[1749457599080,19.31815431,150.73,150.68,12.68361543]
[1749457601472,12.68361543,150.69,150.67,26.0]
[1749457601676,12.68361543,150.69,150.65,14.24041543]
[1749457601876,12.68361543,150.69,150.65,19.32147241]
[1749457602897,19.31987516,150.69,150.65,12.68361543]
[1749457603094,19.31987516,150.69,150.64,10.3]
[1749457603286,12.68361543,150.67,150.62,8.24792454]
[1749457603484,6.63625973,150.69,150.62,20.93153997]
[1749457603485,12.68361543,150.66,150.62,20.93153997]
[1749457604203,19.32115626,150.66,150.61,45.32310945]
[1749457604377,12.68361543,150.66,150.62,12.68361543]
[1749457605376,12.68361543,150.66,150.62,19.32277892]
[1749457607499,12.68361543,150.66,150.62,6.63916349]
[1749457607803,19.3211092,150.66,150.62,12.68361543]
[1749457608301,12.68361543,150.65,150.61,12.68361543]
[1749457608692,6.63749377,150.66,150.6,48.98361543]
[1749457608693,12.68361543,150.64,150.6,48.98361543]
[1749457608887,12.68361543,150.64,150.6,38.68361543]
[1749457610009,12.68361543,150.64,150.6,45.32370921]
[1749457611989,12.68361543,150.64,150.59,12.68361543]
[1749457611990,12.68361543,150.63,150.59,12.68361543]
[1749457612308,19.32211713,150.64,150.6,12.68361543]
[1749457612608,19.32168632,150.65,150.61,12.68361543]
[1749457612822,12.68361543,150.65,150.61,12.68361543]
[1749457614111,20.90135447,150.66,150.62,12.68361543]
[1749457614605,20.90135447,150.66,150.58,6.64072322]
[1749457614812,20.90135447,150.66,150.62,12.68361543]
[1749457615589,8.21773904,150.66,150.62,12.68361543]
[1749457615809,29.62081202,150.67,150.62,12.68361543]
[1749457617813,19.32125812,150.66,150.62,12.68361543]
[1749457622600,12.68361543,150.66,150.63,12.68361543]
[1749457622900,29.62080301,150.67,150.63,12.68361543]
[1749457623524,12.68361543,150.66,150.63,12.68361543]
[1749457623721,19.32119047,150.66,150.62,12.68361543]
[1749457623903,12.68361543,150.65,150.61,12.68361543]
[1749457625225,19.3216205,150.65,150.61,12.68361543]
[1749457625826,6.63800507,150.65,150.61,19.3232574]
[1749457626212,19.32126626,150.66,150.62,12.68361543]
[1749457626927,6.63765083,150.66,150.62,12.68361543]
[1749457627233,19.32126626,150.66,150.62,12.68361543]
[1749457628113,29.62081689,150.67,150.63,12.68361543]
[1749457628427,10.3,150.67,150.64,12.68361543]
[1749457628633,10.3,150.67,150.65,12.68361543]
[1749457629136,10.3,150.67,150.64,12.68361543]
[1749457629520,19.32032154,150.68,150.64,12.68361543]
[1749457631927,12.68361543,150.67,150.63,12.68361543]
[1749457632432,12.68361543,150.66,150.62,12.68361543]
[1749457633439,19.32088359,150.67,150.63,12.68361543]
[1749457640240,6.63658083,150.68,150.63,12.68361543]
[1749457640437,12.68361543,150.67,150.63,12.68361543]
[1749457641044,12.68361543,150.68,150.64,12.68361543]
[1749457642149,19.32022779,150.68,150.64,12.68361543]
[1749457645746,12.68361543,150.67,150.63,12.68361543]
[1749457647051,19.32065768,150.67,150.63,12.68361543]
[1749457649151,12.68361543,150.67,150.63,19.3223951]
[1749457649348,8.12359959,150.67,150.63,14.76237926]
[1749457651143,14.76063312,150.67,150.63,8.12359959]
[1749457653653,6.63703353,150.67,150.63,8.12359959]
[1749457653832,14.76063312,150.67,150.63,8.12359959]
[1749457654228,4.96353736,150.69,150.66,8.12359959]
[1749457654433,10.3,150.7,150.66,6.63738088]
[1749457654642,14.7591533,150.71,150.67,8.12359959]
[1749457655952,8.12359959,150.7,150.66,8.12359959]
[1749457657354,12.6867842,150.7,150.66,12.6867842]
[1749457660452,19.32257008,150.7,150.66,12.6867842]
[1749457662354,19.32257008,150.7,150.65,6.63775623]
[1749457662355,12.6867842,150.72,150.68,12.6867842]
[1749457662551,6.1824,150.73,150.7,12.6867842]
[1749457662552,6.63454589,150.73,150.7,12.6867842]
[1749457662851,18.45652133,150.74,150.7,12.6867842]
[1749457663059,18.45652133,150.74,150.71,12.6867842]
[1749457664528,16.91412133,150.74,150.71,12.6867842]
[1749457667163,4.96042525,150.76,150.73,12.6867842]
[1749457667342,184.99873306,150.77,150.73,12.6867842]
[1749457668347,19.31999214,150.76,150.72,12.6867842]
[1749457669060,6.63320794,150.76,150.72,12.6867842]
[1749457669250,19.31999214,150.76,150.72,12.6867842]
[1749457673541,12.6867842,150.75,150.71,12.6867842]
[1749457673743,12.6867842,150.75,150.66,12.6867842]
[1749457673744,12.6867842,150.72,150.66,12.6867842]
[1749457673942,12.6867842,150.72,150.64,10.28]
[1749457673943,12.6867842,150.69,150.64,10.28]
[1749457674268,12.6867842,150.69,150.65,12.6867842]
[1749457676167,19.32293212,150.69,150.65,12.6867842]
[1749457677461,12.6867842,150.68,150.64,48.9667842]
[1749457677970,12.6867842,150.68,150.64,55.60497515]
[1749457680167,12.6867842,150.68,150.64,48.9667842]
[1749457680168,19.3234196,150.68,150.64,48.9667842]
[1749457680467,12.6867842,150.67,150.64,26.0]
[1749457680644,6.6366354,150.68,150.62,12.6867842]
[1749457680645,12.6867842,150.66,150.62,12.6867842]
[1749457683176,19.32435074,150.66,150.62,12.6867842]
[1749457683373,12.6867842,150.65,150.61,12.6867842]
[1749457683775,12.6867842,150.65,150.61,19.32640567]
[1749457684651,19.32435074,150.66,150.61,19.32640567]
[1749457685260,12.6867842,150.65,150.61,19.32640567]
[1749457686470,19.32426955,150.66,150.61,19.32640567]
[1749457687360,18.64964886,150.68,150.61,19.32640567]
[1749457687361,12.6867842,150.65,150.61,19.32640567]
[1749457690055,6.63658083,150.68,150.61,19.32640567]
[1749457690262,12.6867842,150.67,150.63,12.6867842]
[1749457690861,12.6867842,150.68,150.64,12.6867842]
[1749457691883,19.32337953,150.68,150.64,12.6867842]
[1749457692382,12.6867842,150.68,150.64,19.32499941]
[1749457693465,19.32299481,150.69,150.64,19.32499941]
[1749457693781,12.6867842,150.69,150.65,12.6867842]
[1749457694078,12.6867842,150.7,150.66,12.6867842]
[1749457697185,19.32212791,150.71,150.67,12.6867842]
[1749457697360,12.6867842,150.71,150.67,19.3237573]
[1749457698169,19.32207691,150.71,150.67,12.6867842]
[1749457703984,12.6867842,150.7,150.66,12.6867842]
[1749457705368,19.32268636,150.7,150.66,12.6867842]
[1749457707289,19.32218972,150.71,150.67,12.6867842]
[1749457707507,1.6223,150.72,150.67,12.6867842]
[1749457707672,66.2,150.74,150.66,6.63737848]
[1749457707673,12.6867842,150.74,150.7,12.6867842]
[1749457708888,19.32100478,150.74,150.7,12.6867842]
[1749457709565,32.2441,150.76,150.72,12.6867842]
[1749457709566,12.8775904,150.76,150.72,12.6867842]
[1749457709885,12.6867842,150.75,150.71,12.6867842]
[1749457710690,6.63393923,150.74,150.71,12.6867842]
[1749457710864,6.2441,150.76,150.73,12.6867842]
[1749457711068,154.30716923,150.77,150.73,12.6867842]
[1749457711270,166.99395343,150.77,150.73,12.6867842]
[1749457714379,166.99395343,150.77,150.72,6.63472427]
[1749457714380,6.63296923,150.77,150.74,12.6867842]
[1749457714693,6.63234905,150.78,150.75,12.6867842]
[1749457716879,19.31867666,150.79,150.75,12.6867842]
[1749457717692,6.63189246,150.79,150.75,12.6867842]
[1749457717882,19.31867666,150.79,150.75,12.6867842]
[1749457718991,6.63189246,150.79,150.76,12.6867842]
[1749457719187,19.31867666,150.79,150.75,12.6867842]
[1749457720987,12.6867842,150.78,150.74,12.6867842]
[1749457721192,12.6867842,150.76,150.72,38.6867842]
[1749457721485,12.6867842,150.76,150.71,12.6867842]
[1749457721701,12.6867842,150.75,150.71,12.6867842]